bitfinex-derivatives/quotes_SOLF0:USTF0_20250514
["timestamp","ask_amount","ask_price","bid_price","bid_amount"]
[1747231528551,77.8145,178.72,178.57,72.5]
[1747231528752,72.22,178.72,178.57,72.5]
[1747231528953,72.22,178.72,178.56,29.0712462]
[1747231529256,72.22,178.72,178.57,144.74]
[1747231529454,72.22,178.72,178.64,5.5968]
[1747231529657,362.0,178.71,178.57,144.74]
[1747231530258,434.2,178.71,178.57,144.74]
[1747231530656,434.2,178.71,178.66,5.5961]
[1747231530856,434.2,178.71,178.57,144.74]
[1747231531058,362.0,178.7,178.55,483.5]
[1747231531258,362.0,178.7,178.57,72.52]
[1747231531259,379.8725462,178.7,178.57,72.52]
[1747231531855,17.8725462,178.66,178.57,72.52]
[1747231532054,144.7,178.65,178.55,483.5]
[1747231532356,5.598,178.61,178.55,483.5]
[1747231532556,144.7,178.65,178.54,3.7017]
[1747231532756,5.5991,178.58,178.54,5.6]
[1747231533064,72.16,178.59,178.52,26.16718574]
[1747231533860,77.7588,178.59,178.54,5.5998]
[1747231534057,72.16,178.59,178.49,72.52]
[1747231534556,452.0325462,178.59,178.49,72.52]
[1747231534756,434.16,178.59,178.49,72.52]
[1747231534952,72.16,178.59,178.49,72.52]
[1747231535357,72.16,178.59,178.56,5.5994]
[1747231535560,72.16,178.59,178.49,72.52]
[1747231535763,72.16,178.59,178.48,10.35889643]
[1747231536058,72.16,178.59,178.48,6.54179643]
[1747231536059,434.16,178.59,178.48,6.54179643]
[1747231536259,362.0,178.59,178.48,6.54179643]
[1747231536455,72.12,178.58,178.48,6.54179643]
[1747231536656,72.12,178.58,178.46,556.16]
[1747231536950,72.12,178.58,178.47,11.2046]
[1747231537156,362.0,178.59,178.47,17.8725462]
[1747231537350,362.0,178.59,178.48,11.204]
[1747231537559,362.0,178.59,178.57,5.5989]
[1747231537755,362.0,178.59,178.49,72.12]
[1747231537756,72.12,178.62,178.52,72.54]
[1747231538551,5.5983,178.6,178.52,72.54]
[1747231538856,72.12,178.62,178.48,72.1]
[1747231539054,362.0,178.61,178.48,72.1]
[1747231539952,17.8725462,178.6,178.48,72.1]
[1747231540255,5.5994,178.57,178.53,5.6001]
[1747231540457,72.08,178.56,178.53,5.6001]
[1747231540758,72.08,178.56,178.54,5.6]
[1747231540956,72.08,178.56,178.48,72.1]
[1747231541159,362.0,178.61,178.48,72.1]
[1747231541454,434.08,178.61,178.6,5.5982]
[1747231541856,434.08,178.61,178.53,72.12]
[1747231542160,434.08,178.61,178.49,72.12]
[1747231542356,5.5985,178.59,178.49,72.12]
[1747231542553,72.12,178.58,178.46,483.64]
[1747231542757,72.12,178.58,178.46,555.76]
[1747231542956,5.5995,178.56,178.46,555.76]
[1747231543262,72.06,178.55,178.46,555.76]
[1747231543463,72.06,178.58,178.46,555.76]
[1747231543960,5.5995,178.56,178.52,5.6004]
[1747231544160,5.5995,178.56,178.46,555.76]
[1747231544658,72.06,178.58,178.46,555.76]
[1747231545061,362.0,178.57,178.46,555.76]
[1747231545658,367.5992,178.57,178.46,555.76]
[1747231545860,362.0,178.57,178.46,555.76]
[1747231546156,72.12,178.6,178.46,555.76]
[1747231546461,72.02,178.59,178.46,555.76]
[1747231548264,379.8725462,178.58,178.44,3.7352]
[1747231548660,17.8725462,178.54,178.4,77.09264]
[1747231548961,17.8725462,178.5,178.4,4.97264]
[1747231549160,434.12,178.49,178.41,5.6039]
[1747231549356,71.98,178.48,178.4,4.97264]
[1747231550261,362.0,178.47,178.4,4.97264]
[1747231550658,17.8725462,178.46,178.4,4.97264]
[1747231550851,5.604,178.42,178.4,4.97264]
[1747231551054,71.96,178.41,178.4,4.97264]
[1747231551260,71.96,178.41,178.4,10.57714]
[1747231551654,362.0,178.47,178.4,4.97264]
[1747231551861,433.94,178.47,178.46,5.6026]
[1747231552165,362.0,178.47,178.4,4.97264]
[1747231552458,5.6042,178.41,178.4,4.97264]
[1747231552662,71.94,178.41,178.4,4.97264]
[1747231552864,77.5442,178.41,178.4,4.97264]
[1747231553559,71.94,178.41,178.4,4.97264]
[1747231554464,77.5442,178.41,178.4,4.97264]
[1747231555563,71.94,178.41,178.4,4.97264]
[1747231555764,362.0,178.44,178.4,4.97264]
[1747231555962,71.94,178.42,178.4,4.97264]
[1747231556363,77.5439,178.42,178.4,4.97264]
[1747231556567,71.94,178.42,178.4,4.97264]
[1747231556865,362.0,178.44,178.4,4.97264]
[1747231557065,362.0,178.44,178.41,5.6041]
[1747231558167,362.0,178.44,178.4,4.97264]
[1747231558568,5.6042,178.41,178.4,4.97264]
[1747231559468,72.18,178.42,178.4,4.97264]
[1747231560070,362.0,178.44,178.4,4.97264]
[1747231560367,433.88,178.44,178.42,5.6036]
[1747231560868,433.88,178.44,178.4,4.97264]
[1747231561172,5.6038,178.43,178.4,4.97264]
[1747231561573,433.88,178.44,178.4,4.97264]
[1747231562270,5.6042,178.41,178.4,4.97264]
[1747231562765,5.6041,178.42,178.4,4.97264]
[1747231562967,433.88,178.44,178.4,4.97264]
[1747231563468,5.6042,178.41,178.4,4e-05]
[1747231563671,72.18,178.41,178.3,1.7745]
[1747231563872,362.0,178.4,178.3,1.7745]
[1747231564268,433.82,178.4,178.3,1.7745]
[1747231564469,439.4247,178.4,178.3,1.7745]
[1747231564967,433.82,178.4,178.35,5.6058]
[1747231565172,433.82,178.4,178.3,1.7745]
[1747231565370,451.6925462,178.4,178.28,3.7788]
[1747231565569,5.6072,178.32,178.24,72.18]
[1747231565770,71.82,178.32,178.24,72.18]
[1747231566063,71.82,178.32,178.28,5.6081]
[1747231566266,71.82,178.32,178.19,72.18]
[1747231566462,5.6093,178.25,178.19,72.18]
[1747231566667,71.8,178.27,178.19,72.18]
[1747231567170,71.8,178.27,178.22,5.6099]
[1747231567171,5.6091,178.26,178.22,5.6099]
[1747231567473,71.8,178.27,178.19,72.18]
[1747231568268,71.8,178.27,178.12,71.78]
[1747231568474,71.8,178.27,178.15,1.819]
[1747231568475,362.0,178.26,178.15,1.819]
[1747231569671,362.0,178.25,178.15,1.819]
[1747231569878,71.78,178.24,178.16,5.6118]
[1747231570069,17.8725462,178.23,178.08,71.78]
[1747231570269,5.6117,178.18,178.09,3.678]
[1747231570465,17.8725462,178.23,178.09,3.678]
[1747231570466,362.0,178.21,178.09,3.678]
[1747231570671,71.76,178.2,178.09,3.678]
[1747231571071,71.76,178.2,178.19,5.6111]
[1747231571275,362.0,178.21,178.13,71.8]
[1747231571476,71.76,178.23,178.14,1.9257]
[1747231572478,5.6112,178.19,178.09,75.478]
[1747231572778,71.76,178.18,178.12,5.6131]
[1747231572975,5.6125,178.15,178.09,1.8821]
[1747231573177,71.82,178.14,178.1,5.6137]
[1747231573377,71.74,178.13,178.06,1.8926]
[1747231573775,71.74,178.13,178.09,5.614]
[1747231573978,71.74,178.13,178.02,1.9257]
[1747231574178,5.6137,178.11,178.02,1.9257]
[1747231574377,5.6137,178.11,178.06,5.6149]
[1747231574584,5.6137,178.11,178.01,3.81]
[1747231574585,17.8725462,178.11,178.01,3.81]
[1747231574885,17.8725462,178.11,178.03,5.6161]
[1747231575072,17.8725462,178.11,178.01,3.81]
[1747231575383,362.0,178.1,178.01,5.6168]
[1747231575575,71.82,178.09,177.97,1.7559]
[1747231575781,71.72,178.08,177.97,1.7559]
[1747231576482,17.8725462,178.07,177.97,1.7559]
[1747231576687,362.0,178.06,177.88,78.45222956]
[1747231576884,362.0,178.06,177.91,1.7559]
[1747231577481,17.8725462,178.03,177.91,1.7559]
[1747231577682,143.6,178.02,177.91,1.7559]
[1747231578289,17.8725462,178.03,177.91,1.7559]
[1747231578475,143.58,178.01,177.91,1.7559]
[1747231578875,71.72,178.01,177.91,1.7559]
[1747231579076,71.72,178.01,178.0,5.6171]
[1747231579275,71.72,178.01,177.91,1.7559]
[1747231579486,362.0,178.09,177.91,1.7559]
[1747231579678,143.6,178.08,178.04,5.6157]
[1747231579882,143.6,178.08,177.96,71.88]
[1747231580086,143.6,178.08,177.97,71.88]
[1747231580282,143.6,178.08,177.98,1.764]
[1747231580483,143.6,178.08,177.99,1.8575]
[1747231581293,143.6,178.08,178.05,5.6153]
[1747231581589,143.6,178.08,177.99,1.8575]
[1747231581590,143.6,178.08,178.0,1.8967]
[1747231582391,143.6,178.08,178.03,5.6161]
[1747231582690,5.6151,178.07,178.0,1.8967]
[1747231582889,143.6,178.08,178.0,1.8967]
[1747231583193,5.6149,178.07,178.0,1.8967]
[1747231583388,143.6,178.08,178.03,5.6159]
[1747231583695,143.6,178.08,177.99,1.8575]
[1747231583892,143.6,178.08,177.84,17.8725462]
[1747231583893,362.0,178.07,177.93,71.9]
[1747231584089,362.0,178.06,177.93,71.9]
[1747231584588,379.8725462,178.06,177.93,71.9]
[1747231584787,5.6162,178.03,177.93,71.9]
[1747231584987,143.58,178.02,177.93,71.9]
[1747231585396,143.58,178.02,177.99,5.6173]
[1747231585684,143.58,178.02,177.93,71.9]
[1747231586092,143.58,178.02,178.01,5.6168]
[1747231586291,71.68,178.02,178.01,5.6168]
[1747231586490,71.68,178.02,177.93,71.9]
[1747231586691,71.68,178.02,177.93,143.58]
[1747231587097,71.68,178.02,178.01,5.6168]
[1747231587394,71.68,178.05,177.93,143.58]
[1747231587698,362.0,178.06,177.94,11.2379]
[1747231589396,362.0,178.06,178.04,5.6156]
[1747231589587,71.66,178.09,177.98,71.92]
[1747231589788,5.615,178.07,178.02,5.6162]
[1747231589989,71.66,178.09,177.98,71.92]
[1747231590391,5.6151,178.07,177.98,71.92]
[1747231590589,71.66,178.09,177.98,71.92]
[1747231590786,71.64,178.09,177.98,143.56]
[1747231590985,71.64,178.09,177.99,5.5064]
[1747231591390,71.9,178.11,178.08,5.6143]
[1747231591592,71.9,178.11,177.99,5.5064]
[1747231593797,71.9,178.11,178.03,5.6159]
[1747231593798,5.615,178.07,178.03,5.6159]
[1747231594097,71.6,178.06,178.03,5.6159]
[1747231594401,143.52,178.06,177.99,3.5911]
[1747231594702,143.52,178.06,177.94,71.92]
[1747231595096,5.6159,178.04,177.94,71.92]
[1747231595302,143.52,178.06,177.94,71.92]
[1747231595800,362.0,178.05,177.9,75.6465]
[1747231596704,5.6163,178.03,177.9,75.6465]
[1747231597000,362.0,178.05,177.9,75.6465]
[1747231598500,5.6165,178.02,177.98,5.6175]
[1747231598700,71.56,178.01,177.98,5.6175]
[1747231598902,71.56,178.01,177.9,75.6465]
[1747231599904,71.56,178.01,177.98,5.6175]
[1747231600602,71.56,178.01,177.9,75.6465]
[1747231600603,77.1768,178.01,177.97,5.618]
[1747231600901,77.1768,178.01,177.9,75.6465]
[1747231601100,362.0,178.05,177.9,75.6465]
[1747231601300,362.0,178.1,177.97,17.8725462]
[1747231601506,433.54,178.17,177.98,630.3685]
[1747231601704,433.54,178.17,178.02,11.2328]
[1747231601904,71.54,178.17,178.03,143.1]
[1747231602106,71.54,178.17,178.05,17.8725462]
[1747231602304,71.54,178.2,178.05,17.8725462]
[1747231602506,71.54,178.21,178.05,17.8725462]
[1747231602801,77.1506,178.21,178.05,17.8725462]
[1747231603006,71.54,178.21,178.05,17.8725462]
[1747231603207,433.52,178.25,178.09,17.8725462]
[1747231603395,433.52,178.25,178.1,148.596]
[1747231603806,433.52,178.25,178.2,5.6106]
[1747231604006,433.52,178.25,178.16,71.54]
[1747231604206,433.52,178.25,178.1,5.516]
[1747231604404,433.52,178.25,178.11,143.04]
[1747231605110,433.52,178.25,178.16,5.6117]
[1747231605309,451.3925462,178.25,178.11,143.04]
[1747231606504,451.3925462,178.25,178.11,71.54]
[1747231606806,451.3925462,178.25,178.13,5.613]
[1747231607306,5.6116,178.18,178.13,5.613]
[1747231607510,71.44,178.17,178.13,5.613]
[1747231607708,71.44,178.17,178.09,485.34]
[1747231608116,362.0,178.24,178.17,5.6115]
[1747231608300,142.98,178.23,178.17,5.6115]
[1747231608501,142.98,178.23,178.09,485.34]
[1747231609010,5.611,178.2,178.09,485.34]
[1747231609210,142.98,178.23,178.15,5.6121]
[1747231609411,142.98,178.23,178.09,485.34]
[1747231609609,71.54,178.23,178.21,5.6104]
[1747231609817,433.42,178.24,178.13,71.52]
[1747231610110,71.42,178.24,178.13,71.52]
[1747231611310,5.6104,178.22,178.17,5.6114]
[1747231611506,71.42,178.24,178.17,5.6114]
[1747231611706,71.42,178.24,178.13,71.52]
[1747231613306,71.42,178.24,178.1,1.7895]
[1747231613512,89.2925462,178.24,178.12,5.6133]
[1747231613712,89.2925462,178.24,178.1,1.7895]
[1747231614012,362.0,178.23,178.1,1.7895]
[1747231614211,71.52,178.22,178.1,1.7895]
[1747231614511,77.1304,178.22,178.1,1.7895]
[1747231614711,71.52,178.22,178.1,1.7895]
[1747231615107,71.52,178.22,178.15,5.6122]
[1747231615414,71.52,178.22,178.1,1.7895]
[1747231615609,5.6116,178.18,178.13,5.6128]
[1747231615814,71.34,178.18,178.1,1.7895]
[1747231616211,71.34,178.18,178.14,5.6124]
[1747231616412,71.34,178.18,178.1,1.7895]
[1747231616608,71.34,178.18,178.09,556.86]
[1747231617212,71.34,178.18,178.12,5.6132]
[1747231617408,71.34,178.18,178.09,556.86]
[1747231618015,362.0,178.23,178.09,556.86]
[1747231618316,71.3,178.19,178.09,556.86]
[1747231619111,71.3,178.19,178.16,5.6119]
[1747231619314,71.3,178.19,178.09,556.86]
[1747231619616,71.3,178.19,178.15,5.6123]
[1747231620118,76.9111,178.19,178.09,556.86]
[1747231620309,71.3,178.19,178.09,556.86]
[1747231620510,71.3,178.19,178.09,628.14]
[1747231620916,71.3,178.19,178.09,485.34]
[1747231621104,17.8725462,178.17,178.06,3.7131]
[1747231621310,71.5,178.16,178.04,71.52]
[1747231622207,5.6131,178.13,178.09,5.614]
[1747231622514,362.0,178.18,178.04,71.52]
[1747231622812,362.0,178.18,178.02,89.1325462]
[1747231622813,71.26,178.17,178.14,5.6124]
[1747231623013,71.26,178.17,178.1,71.5]
[1747231623810,5.6126,178.15,178.11,5.6134]
[1747231624208,71.5,178.16,178.03,71.5]
[1747231624414,5.613,178.13,178.09,5.614]
[1747231625117,71.5,178.16,178.03,71.5]
[1747231626307,71.22,178.15,178.03,71.5]
[1747231626818,5.6135,178.12,178.03,71.5]
[1747231627012,71.22,178.15,178.03,71.5]
[1747231627815,5.6131,178.13,178.03,71.5]
[1747231628013,433.22,178.15,178.01,3.719]
[1747231628209,17.8725462,178.12,177.98,150.09195828]
[1747231628517,5.6157,178.05,177.98,150.09195828]
[1747231628815,5.6157,178.05,177.95,3.5859]
[1747231628816,71.2,178.04,177.95,3.5859]
[1747231629010,71.2,178.04,177.93,71.18]
[1747231629210,17.8725462,178.07,177.93,71.18]
[1747231629405,142.36,178.06,177.93,71.18]
[1747231629611,147.9753,178.06,178.01,5.6165]
[1747231629816,71.18,178.05,177.94,71.18]
[1747231630712,71.18,178.05,178.04,5.6158]
[1747231630913,864.9725462,178.11,177.98,71.2]
[1747231631114,71.18,178.07,177.98,71.2]
[1747231631417,847.1,178.11,177.99,3.8063]
[1747231631612,71.18,178.11,177.99,74.9863]
[1747231631806,71.18,178.11,178.08,5.6145]
[1747231632012,71.18,178.11,178.03,71.2]
[1747231632310,71.18,178.11,178.07,5.6146]
[1747231632511,71.18,178.11,178.03,71.2]
[1747231633216,71.16,178.12,178.03,71.2]
[1747231633919,5.6136,178.11,178.07,5.6149]
[1747231634217,71.16,178.12,178.03,71.2]
[1747231634813,362.0,178.18,178.04,71.14]
[1747231635017,71.14,178.17,178.13,5.6127]
[1747231635618,71.14,178.17,178.09,71.2]
[1747231636114,71.14,178.21,178.09,142.34]
[1747231636422,71.14,178.21,178.1,5.5336]
[1747231636815,71.14,178.21,178.17,5.6116]
[1747231637122,71.14,178.21,178.14,71.2]
[1747231637325,71.12,178.25,178.14,71.2]
[1747231638012,71.2,178.28,178.14,71.2]
[1747231638213,71.1,178.27,178.14,142.3]
[1747231638421,5.6104,178.22,178.17,5.6117]
[1747231638719,71.1,178.27,178.14,142.3]
[1747231638921,71.1,178.27,178.16,5.612]
[1747231639121,71.1,178.27,178.11,485.18]
[1747231639425,5.6118,178.17,178.12,5.6133]
[1747231639624,71.1,178.18,178.11,485.18]
[1747231640626,71.08,178.2,178.11,485.18]
[1747231640929,17.8725462,178.26,178.11,485.18]
[1747231641119,142.24,178.25,178.11,485.18]
[1747231641524,71.18,178.25,178.11,485.18]
[1747231641722,17.8725462,178.26,178.12,71.06]
[1747231641927,71.06,178.26,178.12,71.06]
[1747231642425,88.9325462,178.26,178.11,485.18]
[1747231642627,17.8725462,178.22,178.12,5.6133]
[1747231642827,142.22,178.21,178.1,5.5336]
[1747231644230,5.6121,178.16,178.12,5.6131]
[1747231644419,71.04,178.16,178.1,5.5336]
[1747231644625,71.04,178.16,178.1,3.7187]
[1747231645430,5.6126,178.15,178.1,9.3325]
[1747231645631,71.04,178.16,178.1,3.7187]
[1747231645827,71.04,178.16,178.07,71.18]
[1747231646022,71.04,178.16,178.04,1.9065]
[1747231646023,17.8725462,178.14,178.05,3.6499]
[1747231646226,17.8725462,178.14,177.98,71.18]
[1747231646424,362.0,178.13,177.98,71.18]
[1747231646930,5.6158,178.04,178.0,5.617]
[1747231647226,17.8725462,178.1,177.98,71.18]
[1747231647227,71.02,178.05,177.98,71.18]
[1747231647531,5.616,178.04,177.99,5.6171]
[1747231647831,71.0,178.05,177.98,71.18]
[1747231648031,71.0,178.05,177.96,5.5564]
[1747231649528,17.8725462,178.04,177.9,71.2]
[1747231649725,17.8725462,178.04,177.9,72.9506]
[1747231649936,71.2,178.03,177.9,72.9506]
[1747231650432,17.8725462,178.04,177.9,72.9506]
[1747231650636,71.0,178.03,177.9,72.9506]
[1747231650933,71.0,178.03,177.91,71.0]
[1747231651135,5.6173,178.0,177.95,5.6184]
[1747231651432,5.6173,178.0,177.9,72.9506]
[1747231651636,5.6173,178.0,177.96,5.6183]
[1747231651839,71.0,178.03,177.9,72.9506]
[1747231652331,5.6168,178.01,177.9,72.9506]
[1747231652732,5.6168,178.01,177.96,5.618]
[1747231652933,5.6172,178.0,177.96,5.618]
[1747231653234,71.0,178.03,177.94,5.6188]
[1747231653435,71.0,178.03,177.9,72.9506]
[1747231654434,71.0,178.03,177.95,5.6186]
[1747231654636,71.0,178.03,177.9,72.9506]
[1747231654935,71.0,178.03,177.97,5.6178]
[1747231655133,5.6166,178.02,177.97,5.6178]
[1747231655333,71.0,178.03,177.9,72.9506]
[1747231655632,71.0,178.03,177.95,5.6184]
[1747231655832,71.0,178.03,177.9,72.9506]
[1747231656036,362.0,178.07,177.9,72.9506]
[1747231656237,142.2,178.06,177.9,72.9506]
[1747231656530,142.2,178.06,177.99,5.6172]
[1747231656838,71.22,178.06,177.92,70.96]
[1747231657036,70.96,178.05,178.02,5.6164]
[1747231657237,70.96,178.05,177.96,71.22]
[1747231657437,70.96,178.05,177.97,1.9146]
[1747231657639,70.96,178.05,178.0,5.6169]
[1747231657840,70.96,178.05,177.97,1.9146]
[1747231658429,70.96,178.05,177.97,3.7359]
[1747231658739,70.96,178.05,178.01,5.6165]
[1747231659039,70.96,178.05,177.97,3.7359]
[1747231659742,70.94,178.09,177.97,74.6759]
[1747231659940,76.5543,178.09,177.97,74.6759]
[1747231660138,70.94,178.09,177.97,74.6759]
[1747231660939,76.5545,178.09,178.04,5.6157]
[1747231661137,70.94,178.09,178.01,70.94]
[1747231661340,70.94,178.09,178.02,1.9002]
[1747231661542,70.94,178.09,178.07,5.6147]
[1747231662236,70.94,178.09,178.08,5.6146]
[1747231662844,70.92,178.15,178.06,70.94]
[1747231663240,76.5326,178.15,178.06,70.94]
[1747231663443,70.92,178.15,178.1,5.6137]
[1747231663641,70.92,178.15,178.06,70.94]
[1747231663946,88.7925462,178.15,178.03,70.94]
[1747231665245,5.6137,178.11,178.07,5.6147]
[1747231665547,70.88,178.14,178.03,70.94]
[1747231665739,362.0,178.16,178.15,5.6124]
[1747231665936,5.6111,178.19,178.15,5.6124]
[1747231666136,70.88,178.2,178.1,70.94]
[1747231666342,88.7525462,178.2,178.1,70.94]
[1747231667348,5.6117,178.18,178.13,5.613]
[1747231667548,88.7525462,178.2,178.1,70.94]
[1747231667848,5.6123,178.16,178.12,5.6133]
[1747231668050,5.6123,178.16,178.06,72.826]
[1747231668246,70.94,178.18,178.06,72.826]
[1747231668842,76.5517,178.18,178.06,72.826]
[1747231669145,70.94,178.18,178.06,72.826]
[1747231669951,5.6119,178.17,178.12,5.6131]
[1747231670250,70.94,178.18,178.06,72.826]
[1747231671447,362.0,178.23,178.06,72.826]
[1747231671647,70.92,178.22,178.06,72.826]
[1747231671846,141.74,178.22,178.06,72.826]
[1747231672653,5.6118,178.17,178.06,72.826]
[1747231672958,70.8,178.16,178.06,72.826]
[1747231673746,70.78,178.2,178.17,5.6115]
[1747231673948,362.0,178.23,178.11,70.92]
[1747231674152,432.78,178.23,178.12,72.8012]
[1747231674345,432.78,178.23,178.13,1.7742]
[1747231674857,362.0,178.31,178.13,1.7742]
[1747231675053,70.78,178.28,178.14,70.78]
[1747231675246,70.78,178.28,178.14,81.85865476]
[1747231675450,70.78,178.28,178.15,1.917]
[1747231675650,70.9,178.3,178.15,19.89504268]
[1747231675851,5.6085,178.28,178.22,5.6099]
[1747231676356,5.6085,178.28,178.21,70.9]
[1747231676556,141.66,178.3,178.21,70.9]
[1747231676756,141.66,178.3,178.17,70.9]
[1747231677255,17.97804268,178.27,178.17,70.9]
[1747231678058,5.6111,178.19,178.17,70.9]
[1747231678260,70.74,178.22,178.17,70.9]
[1747231678657,5.611,178.2,178.17,70.9]
[1747231679055,70.74,178.22,178.15,1.917]
[1747231680352,70.7,178.24,178.15,1.917]
[1747231680762,5.6113,178.19,178.15,7.5291]
[1747231680959,70.7,178.24,178.15,1.917]
[1747231681561,70.7,178.24,178.13,72.6742]
[1747231681760,5.611,178.2,178.16,5.6119]
[1747231682361,5.6111,178.19,178.15,5.6123]
[1747231682561,88.67804268,178.24,178.13,72.6742]
[1747231683759,70.7,178.24,178.13,72.6742]
[1747231683959,5.6118,178.17,178.14,5.6126]
[1747231684660,70.66,178.19,178.13,72.6742]
[1747231684857,70.66,178.19,178.13,70.9]
[1747231685259,70.66,178.19,178.11,1.7727]
[1747231685455,70.66,178.19,178.09,70.88]
[1747231686159,76.2714,178.19,178.09,70.88]
[1747231686463,70.66,178.19,178.09,70.88]
[1747231686667,70.66,178.19,178.09,141.5]
[1747231687061,141.5,178.24,178.09,141.5]
[1747231687262,70.62,178.25,178.22,5.6101]
[1747231687464,70.62,178.25,178.18,70.88]
[1747231687660,70.62,178.27,178.19,3.5875]
[1747231687864,438.2284,178.28,178.23,5.6095]
[1747231688063,432.62,178.28,178.19,5.355]
[1747231688265,70.62,178.28,178.19,5.355]
[1747231688965,76.2286,178.28,178.19,5.355]
[1747231689165,70.62,178.28,178.19,5.355]
[1747231689762,70.88,178.32,178.19,5.355]
[1747231689968,5.6077,178.3,178.2,70.6]
[1747231690364,5.6077,178.3,178.25,5.609]
[1747231690668,362.0,178.34,178.23,70.58]
[1747231690864,70.58,178.33,178.23,70.58]
[1747231692066,5.6076,178.3,178.23,70.58]
[1747231692264,70.58,178.33,178.26,5.6087]
[1747231692465,70.58,178.33,178.23,70.58]
[1747231692665,76.1868,178.33,178.23,70.58]
[1747231692861,203.18854876,178.37,178.23,70.58]
[1747231693171,362.0,178.43,178.26,17.97804268]
[1747231693371,70.56,178.42,178.27,72.3172]
[1747231693671,70.56,178.42,178.28,74.2623]
[1747231694470,70.56,178.42,178.32,5.6069]
[1747231694769,70.56,178.42,178.28,74.2623]
[1747231695070,5.6054,178.38,178.32,5.6067]
[1747231695371,70.58,178.41,178.28,74.2623]
[1747231695767,5.6061,178.36,178.3,5.6074]
[1747231695968,5.6061,178.36,178.28,74.2623]
[1747231695969,76.1261,178.36,178.28,74.2623]
[1747231696168,70.52,178.36,178.28,74.2623]
[1747231696767,70.52,178.36,178.31,5.6073]
[1747231696969,70.52,178.36,178.28,74.2623]
[1747231697370,70.48,178.4,178.28,74.2623]
[1747231697873,70.48,178.4,178.34,5.6064]
[1747231698070,70.48,178.4,178.28,74.2623]
[1747231698972,5.6054,178.38,178.33,5.6067]
[1747231699372,70.48,178.4,178.28,74.2623]
[1747231699674,5.6049,178.39,178.28,74.2623]
[1747231700175,5.6049,178.39,178.34,5.6063]
[1747231700474,5.6052,178.38,178.28,74.2623]
[1747231700769,70.48,178.4,178.28,74.2623]
[1747231700975,70.48,178.4,178.3,5.6074]
[1747231701177,70.48,178.4,178.28,74.2623]
[1747231701875,5.606,178.36,178.31,5.6073]
[1747231702270,5.606,178.36,178.28,74.2623]
[1747231702475,5.6057,178.37,178.32,5.6069]
[1747231702672,70.48,178.4,178.32,5.6069]
[1747231703075,70.48,178.4,178.33,5.6066]
[1747231703278,70.48,178.4,178.28,74.2623]